Cogmind - Beta 16.1 @@@ ROGUE MODE // 2026.03.01 @ 04:06:34 Player: Florist Result: Destroyed by Executioner with Helical Railgun Performance ------------- Evolutions (8) 4000 Regions Visited (22) 4400 Robots Destroyed (279) 1395 Value Destroyed (10814) 10814 Prototype IDs (138) 2760 Alien Tech Used (5) 1000 Bonus (6202) 6202 TOTAL SCORE: 30571 Bonus ------- High Alert Combat Kills 2605 Follower Combat Kills 906 Hunted by Unchained 500 Registered with UFD 300 Met Optimus in HQ 500 Met Zhirov 300 Found Hidden Lab 3000 Met Optimus at Protoforge 1000 Friendly Fire -2909 Cogmind --------- Core Integrity 0/1450 Matter 300/300 Energy 67/100 System Corruption 18% Temperature Cool (-200) Movement Core (150) Ox2 Location -2/Protoforge Parts ------- > --- POWER (2) -------- (None) > --- PROPULSION (7) --- (None) > --- UTILITY (12) ----- Advanced Cryofiber Web Advanced Targeting Computer Experimental Targeting Computer Advanced Target Analyzer Experimental Core Analyzer Experimental Core Analyzer Experimental Core Analyzer Improved Armor Integrity Analyzer Experimental Weapon Shielding > --- WEAPON (2) ------- Precision Phase Gun > --- INVENTORY (5) ---- Experimental Core Analyzer Centrium Light Armor Plating Concept Antimissile System Power Sword Peak State ------------ > --- POWER ------------ Light Quantum Reactor Improved Quantum Reactor > --- PROPULSION ------- Experimental VSS Leg Experimental VSS Leg Cooled Nuclear Pulse Thruster Cooled Nuclear Pulse Thruster Impulse Thruster Array Improved Q-thruster > --- UTILITY ---------- Advanced Cooling System Medium Storage Unit Experimental Optical Array Advanced Signal Interpreter Experimental Core Analyzer Experimental Core Analyzer Experimental Kinecellerator Advanced Phase Shifter Medium Regenerative Plating Advanced Hacking Suite System Mapper Quantum Router > --- WEAPON ----------- Concept XC Strikerail Concept XC Strikerail > --- INVENTORY -------- Micro Fission Core Experimental Power Amplifier Experimental Kinecellerator Improved Point Defense System Core Regenerator Tachyon Dispersion Ray Concept XC Strikerail Concept XC Strikerail Guided Remote Datajack [Rating: 205] Favorites ----------- Power Light Nuclear Core Engine Light Angular Momentum Engine Power Core Light Nuclear Core Reactor Light Quantum Reactor Propulsion Light Treads Treads Light Treads Leg Experimental VSS Leg Wheel Overtuned Huge Scrapsphere Flight Unit Cooled Cesium-ion Thruster Utility Large Storage Unit Device Seismic Detector Storage Large Storage Unit Processor Advanced Signal Interpreter Hackware Advanced Hacking Suite Protection Medium Armor Plating Weapon Shotgun Energy Gun Improved Medium Laser Energy Cannon Advanced Beam Cannon Ballistic Gun Shotgun Ballistic Cannon Overtuned Bore Cannon Launcher Rocket Launcher Special Weapon Improved Remote Datajack Impact Weapon Makeshift Hammer Slashing Weapon Power Sword Build | -11 -10 -10 -9 -9 -9 -9 -6 -6 -5 -4 -4 -4 -4 -4 -4 -3 -3 -3 -3 -2 -2 -2 ------- Run | Yrd Mat Min Mat Sto Rec Scr Fac Ext Fac Fac Was Fac Upp Upp Zhi Pro Res Arm Lab Res Tes Frg Slots Evolved 16 | . . . 2 . . . 6 . 2 2 . . . . . . 2 . . 2 . . Power 1 | . . . . . . . . . . . . . . . . . 1 . . . . . Propulsion 5 | . . . 1 . . . 3 . . . . . . . . . 1 . . . . . Utility 10 | . . . 1 . . . 3 . 2 2 . . . . . . . . . 2 . . Weapon . | . . . . . . . . . . . . . . . . . . . . . . . Parts Attached 216 | 6 11 4 13 10 . 6 23 3 14 10 . 1 1 3 8 . 9 . 5 6 3 80 Power 25 | 1 2 . 1 2 . 1 1 . . 3 . . . . 2 . 2 . . . 1 9 Engine 6 | 1 1 . . 1 . 1 1 . . 1 . . . . . . . . . . . . Core 6 | . 1 . 1 1 . . . . . 1 . . . . . . 1 . . . . 1 Reactor 13 | . . . . . . . . . . 1 . . . . 2 . 1 . . . 1 8 Propulsion 52 | 2 2 2 4 6 . . 12 . 3 2 . . . . 3 . 2 . 1 2 . 11 Treads 17 | 2 2 2 4 6 . . . . . . . . . . . . . . . . . 1 Leg 7 | . . . . . . . . . . . . . . . . . . . . . . 7 Wheel 3 | . . . . . . . . . . . . . . . . . . . . . . 3 Hover . | . . . . . . . . . . . . . . . . . . . . . . . Flight 25 | . . . . . . . 12 . 3 2 . . . . 3 . 2 . 1 2 . . Utility 102 | 1 3 . 3 2 . 4 8 2 9 5 . . . 3 3 . 5 . 2 4 1 47 Device 35 | 1 1 . . . . 3 2 . 3 3 . . . 1 1 . 1 . 1 2 . 16 Storage 3 | . 1 . . . . . 1 . . . . . . . . . . . . . . 1 Processor 27 | . . . . . . . 3 . 1 . . . . . . . 2 . . . . 21 Hackware 18 | . . . . . . 1 2 . 5 2 . . . 1 1 . 2 . 1 2 1 . Protection 19 | . 1 . 3 2 . . . 2 . . . . . 1 1 . . . . . . 9 Artifact . | . . . . . . . . . . . . . . . . . . . . . . . Weapon 37 | 2 4 2 5 . . 1 2 1 2 . . 1 1 . . . . . 2 . 1 13 Energy Gun 7 | . 1 . 2 . . . . . . . . . . . . . . . 1 . 1 2 Energy Cannon 2 | . . . 1 . . . . . . . . . . . . . . . . . . 1 Ballistic Gun 17 | 2 2 . 2 . . . 1 . . . . . . . . . . . . . . 10 Ballistic Cannon . | . . . . . . . . . . . . . . . . . . . . . . . Launcher 4 | . . 2 . . . . 1 . 1 . . . . . . . . . . . . . Special Weapon 2 | . . . . . . . . . 1 . . . . . . . . . 1 . . . Impact Weapon 2 | . 1 . . . . . . . . . . . 1 . . . . . . . . . Slashing Weapon 3 | . . . . . . 1 . 1 . . . 1 . . . . . . . . . . Piercing Weapon . | . . . . . . . . . . . . . . . . . . . . . . . Special Melee Weapon . | . . . . . . . . . . . . . . . . . . . . . . . Unidentified Prototypes 32 | . 1 . 3 . . . 3 1 1 . . . . 1 5 . . . 3 1 1 12 Corrupted Parts 2 | . . . . . . . 1 . . . . . . . . . . . . . . 1 System Corruption 11 | . . . . . . . 3 . . . . . . . . . . . . . . 8 Parts Lost 83 | . 6 3 2 2 . . 5 2 1 4 . . 1 . . . 8 . . 1 . 48 Power 12 | . 1 1 . 1 . . . . . . . . . . . . 1 . . . . 8 Propulsion 25 | . 2 2 . 1 . . 4 2 1 1 . . 1 . . . 3 . . . . 8 Utility 32 | . 1 . 1 . . . 1 . . 3 . . . . . . 3 . . 1 . 22 Weapon 14 | . 2 . 1 . . . . . . . . . . . . . 1 . . . . 10 Highest Loss Streak 9 | . 3 3 1 1 . . 2 1 1 2 . . 1 . . . 4 . . 1 . 9 To Critical Strikes 1 | . . . . . . . . . . . . . . . . . . . . . . 1 Average Backups 10 | 2 11 14 14 14 15 14 9 9 9 9 10 9 9 9 10 10 8 6 8 9 9 4 Power . | . . . . . . . . 1 1 1 2 1 2 1 1 1 . . . . . . Propulsion 2 | 1 3 3 1 4 5 5 . . . . . 1 1 . 1 1 1 2 1 1 2 . Utility 4 | . 5 6 7 5 5 6 5 5 4 4 5 5 4 4 5 5 3 2 2 1 2 1 Weapon 2 | . 1 4 4 4 3 2 1 1 1 1 2 1 1 1 2 1 2 2 2 2 2 1 Tool/Special . | . . . . . . . . . . . . . . . . . . . . . . . Unused Backups 30 | . 4 1 3 4 1 2 2 1 1 3 1 . 1 . . . . . . . 1 5 Power 1 | . . . . . . . . . . 1 . . . . . . . . . . . . Propulsion 5 | . 3 . 1 1 . . . . . . . . . . . . . . . . . . Utility 16 | . 1 1 1 3 . 2 1 1 . 1 1 . 1 . . . . . . . . 3 Weapon 6 | . . . 1 . 1 . 1 . . . . . . . . . . . . . 1 2 Tool/Special 2 | . . . . . . . . . 1 1 . . . . . . . . . . . . Average Slot Usage (%) 90 | . 92 95 97 99 100 100 87 86 85 81 91 94 85 87 91 100 89 71 70 81 89 74 Engine 3 | . 9 10 . 5 . 3 6 6 5 2 . . . . . . . . . . . . Core 4 | . 4 . 8 5 11 7 . . . 2 5 5 5 5 1 . 1 4 4 4 3 . Reactor 1 | . . . . . . . . . . . . . . . 3 5 3 4 . 3 4 5 Treads 16 | . 26 27 33 32 33 33 . . . . . . . . . . . . . . . . Flight 10 | . . . . . . . 34 33 28 24 26 26 21 21 26 31 29 19 19 26 26 5 Device 9 | . 5 14 10 11 11 11 6 3 5 9 15 15 15 14 15 15 15 9 9 8 7 7 Storage 8 | . 13 14 11 11 11 11 6 6 5 5 5 5 5 4 5 5 4 4 4 4 4 1 Processor 7 | . . . . . . . 12 13 15 13 10 10 10 10 10 10 9 9 9 8 8 23 Hackware 6 | . . . . . . 3 12 13 16 13 15 15 15 19 21 21 14 14 18 17 26 5 Protection 5 | . 5 . 10 11 11 7 . 2 . 2 5 5 1 . . . . . . 3 4 5 Energy Gun 1 | . . . 9 . . . . . . . . . . . . . . . . . . . Energy Cannon 2 | . . . 1 10 11 7 . . . . . . . . . . . . . . . . Ballistic Gun 7 | . 22 20 11 10 11 7 . . . . . . . . . . . . . . . 5 Slashing Weapon 1 | . . . . . . 3 6 6 4 4 5 5 3 . . . . . . . . . Peak Build Rating 205 | 6 11 12 27 26 21 29 66 66 86 108 112 113 113 106 119 119 139 95 120 152 165 205 Average Rating 61 | 4 8 11 23 21 20 23 51 59 70 84 108 111 101 99 107 117 121 94 98 138 154 144 On Entrance 74 | . 6 11 11 26 20 21 29 61 58 75 105 112 113 106 101 119 117 95 94 120 152 156 Avg Prop Armor Cover (%) 6 | . . . . . . . 4 . 3 . . . . . . . . . 5 4 . 7 Naked Turns . | . . . . . . . . . . . . . . . . . . . . . . . Heaviest Build 87 | 7 35 30 39 40 40 40 32 31 36 40 37 46 46 37 46 37 49 39 39 47 52 87 Greatest Support 167 | 40 40 40 66 66 62 62 62 40 34 47 38 38 32 38 38 37 63 27 27 50 59 167 Greatest Overweight (x) 8 | . 1 . . . . . 1 1 1 1 . 1 1 1 1 . 1 1 1 . 1 8 Average Overweight (x) . | . . . . . . . . . . . . . . . . . . 1 . . . . Largest Inventory Capacity 25 | 5 15 15 15 15 15 15 15 10 10 10 10 10 10 10 10 10 10 10 10 10 10 25 Average Capacity 12 | 5 14 15 15 15 15 15 10 10 10 10 10 10 10 9 10 10 10 10 10 10 10 8 Most Carried 22 | 5 15 15 15 15 15 15 15 10 10 10 10 10 10 10 10 10 10 7 10 10 10 22 Average Carried 11 | 3 11 14 14 14 14 14 9 9 9 9 9 9 9 9 9 10 8 6 8 9 9 5 Final Capacity 15 | 5 15 15 15 15 15 15 10 10 10 10 10 10 10 10 10 10 10 10 10 10 10 5 Final Carried 15 | 5 15 14 15 15 15 15 9 10 10 10 10 10 9 10 10 10 7 6 9 10 10 4 Scrap Suit Usage (%) 6 | . . . . . . . . . . . . . . . . . . . . . . 44 Parts Cannibalized 10 | . . . . . . . . . . . . . . . . . . . . . . 10 Class Distribution -------------------- 32% | Mutant 20% | Scavenger-Mutant 12% | Hacker-Ninja 8% | Hacker-Sprinter 6% | Scavenger-Scrapper 6% | Hacker-Scout 5% | Wizard-Scout 3% | Commander-Mutant Dominant Class ---------------- Mutant | -10/Materials Mutant | -10/Mines Mutant | -9/Materials Scavenger-Mutant | -9/Storage Scavenger-Mutant | -9/Recycling Scavenger-Mutant | -9/Scraptown Hacker-Sprinter | -6/Factory Hacker-Sprinter | -6/Extension Hacker-Scout | -5/Factory Hacker-Scout | -4/Factory Hacker-Scout | -4/Waste Hacker-Ninja | -4/Factory Hacker-Ninja | -4/Upper Caves Hacker-Ninja | -4/Upper Caves Hacker-Ninja | -4/Zhirov Hacker-Ninja | -3/Proximity Caves Hacker-Ninja | -3/Research Hacker-Assassin | -3/Armory Wizard-Scout | -3/Lab Wizard-Scout | -2/Research Wizard-Scout | -2/Testing Scavenger-Scrapper | -2/Protoforge Resources | -11 -10 -10 -9 -9 -9 -9 -6 -6 -5 -4 -4 -4 -4 -4 -4 -3 -3 -3 -3 -2 -2 -2 ----------- Run | Yrd Mat Min Mat Sto Rec Scr Fac Ext Fac Fac Was Fac Upp Upp Zhi Pro Res Arm Lab Res Tes Frg Matter Collected 8080 | 368 475 231 592 551 23 146 275 240 46 404 . 221 315 224 232 41 206 . . 137 110 3243 Remotely . | . . . . . . . . . . . . . . . . . . . . . . . Salvage Created 13083 | 260 758 139 1549 1527 177 . 324 323 78 304 . 238 433 318 265 41 551 . . 237 231 5330 Parts 712 | 30 39 13 105 96 9 . 13 17 12 15 . 12 8 . 2 . 7 . . . 9 325 Haulers Intercepted 17 | . 2 . 6 6 . . 2 . . . . . . . . . 1 . . . . . Recyclers Shooed 11 | 1 1 . 4 4 . . 1 . . . . . . . . . . . . . . . Parts Field Recycled . | . . . . . . . . . . . . . . . . . . . . . . . Retrieved Matter . | . . . . . . . . . . . . . . . . . . . . . . . Parts Self-Destructed 4 | . . . . . . . . . . . . . 4 . . . . . . . . . Prevented 3 | . . . . . . . . . . . . . 3 . . . . . . . . . Parts Restored . | . . . . . . . . . . . . . . . . . . . . . . . Kills | -11 -10 -10 -9 -9 -9 -9 -6 -6 -5 -4 -4 -4 -4 -4 -4 -3 -3 -3 -3 -2 -2 -2 ------- Run | Yrd Mat Min Mat Sto Rec Scr Fac Ext Fac Fac Was Fac Upp Upp Zhi Pro Res Arm Lab Res Tes Frg Combat Hostiles Destroyed 179 | . 18 3 29 25 4 . 4 7 4 1 . 5 4 . . . 1 . . . 1 73 Melee 10 | . 4 . . . . . . 3 . 1 . . . . . . 1 . . . 1 . Guns 116 | . 13 3 27 5 2 . . . . . . . . . . . . . . . . 66 Cannons 25 | . . . 1 15 2 . . . . . . . . . . . . . . . . 7 AOE 26 | . . . . 5 . . 4 4 4 . . 5 4 . . . . . . . . . Classes Destroyed 28 | 3 5 2 2 . 1 . . 1 . . . . 2 . . . . . . . . 12 Worker 27 | 2 . 2 4 5 . . 2 . 1 2 . 2 . . . . 3 . . 2 1 1 Builder 8 | . . 1 2 . . . . . 1 1 . . . . . . 1 . . 2 . . Tunneler 9 | 8 . . . . . . . . . . . . . . . . 1 . . . . . Hauler 17 | . 2 . 6 6 . . 2 . . . . . . . . . 1 . . . . . Recycler 9 | 1 1 . 2 1 . . . . . . . 1 . . . . 2 . . 1 . . Minesweeper 1 | . . . . . . . . . . . . . 1 . . . . . . . . . Mechanic 6 | . . . 1 . . . 1 . . . . . . . . . . . . . . 4 Operator 9 | . 1 . 2 2 . . . 1 . 1 . . . . . . . . . 1 1 . Drone 8 | . . . . . . . . . . . . . . . . . . . . . . 8 Watcher 13 | . 2 . 2 2 . . 1 . . 1 . . . . . . 3 . . . 2 . Swarmer 37 | . 6 . 13 3 . . 4 . 4 . . 5 . . . . . . . . . 2 Saboteur 1 | . . . . . . . . . . . . . . . . . . . . . . 1 Grunt 52 | . 12 2 9 11 1 . . 5 . . . . 2 . . . . . . . . 10 Brawler 2 | . . . . . 1 . . . . . . . . . . . . . . . . 1 Duelist 2 | . . . . . . . . . . . . . . . . . . . . . . 2 Protector 3 | . . . . . . . . . . . . . . . . . . . . . . 3 Sentry 21 | . . . 7 11 2 . . 1 . . . . . . . . . . . . . . Demolisher 1 | . . 1 . . . . . . . . . . . . . . . . . . . . Hunter 9 | . . . . . . . . . . . . . . . . . . . . . . 9 Programmer 14 | . . . . . . . . 1 . 1 . . 2 . . . 1 . . . 1 8 Hotshot 4 | . . . . . . . . . . . . . . . . . . . . . . 4 Decapitator 3 | . . . . . . . . . . . . . . . . . . . . . . 3 Overlord 1 | . . . . . . . . . . . . . . . . . . . . . . 1 Striker 11 | . . . . . . . . . . . . . . . . . . . . . . 11 Executioner 7 | . . . . . . . . . . . . . . . . . . . . . . 7 Elite 1 | . . . . . . . . . . . . . . . . . . . . . . 1 Scrapoid 1 | . . . . . . . . . . . . . . . . . . . . . . 1 Scraphulk 1 | . . . . . . . . . . . . . . . . . . . . . . 1 Packrat 3 | . . . . . . . . . . . . . . 3 . . . . . . . . Samaritan 5 | . . . . . . . . . . . . . 1 3 . 1 . . . . . . Best Kill Streak 10 | 5 4 3 3 6 2 . 5 3 2 2 . 5 2 . . . 4 . . 4 2 10 Combat Bots Only 10 | . 3 2 3 5 2 . 4 2 2 1 . 5 2 . . . 1 . . . 1 10 Max Kills in Single Turn 5 | 2 1 1 2 5 1 . 3 2 2 1 . 3 1 1 . 1 1 . . 1 1 3 Gunslinging 1 | . . . 1 . . . . . . . . . . . . . . . . . . 1 Exploded 4 | . . . . 4 . . 3 2 2 . . 3 1 . . . . . . . . . Melee 1 | . 1 . . . . . . 1 . 1 . . . . . . 1 . . . 1 . Uniques/NPCs Destroyed 1 | . . . . . . . . 1 . . . . . . . . . . . . . . A7 (-6/Extension) Combat | -11 -10 -10 -9 -9 -9 -9 -6 -6 -5 -4 -4 -4 -4 -4 -4 -3 -3 -3 -3 -2 -2 -2 -------- Run | Yrd Mat Min Mat Sto Rec Scr Fac Ext Fac Fac Was Fac Upp Upp Zhi Pro Res Arm Lab Res Tes Frg Hostile Shots Fired 1158 | . 134 13 87 71 8 . 20 74 23 28 . 1 6 . . . 48 . . 3 26 616 Missed 400 | . 30 3 23 22 2 . 15 45 14 14 . . 4 . . . 19 . . 1 17 191 Deflected 10 | . . . . . . . . . . . . . . . . . . . . . . 10 Hits 758 | . 104 10 64 49 6 . 5 29 9 14 . 1 2 . . . 29 . . 2 9 425 Melee 45 | . . . . . . . . . . . . . . . . . . . . . . 45 Projectile 713 | . 104 10 64 49 6 . 5 29 9 14 . 1 2 . . . 29 . . 2 9 380 AOE 10 | . . 5 . . . . . . . . . . . . . . . . . . . 5 Critical Strikes 51 | . 2 . 1 1 1 . . 1 . 1 . . . . . . 1 . . . . 43 Actively Blocked 2 | . . . . . . . . . . . . . . . . . . . . . . 2 Damage Taken 17679 | . 1124 244 852 751 82 . 290 345 160 578 . 17 303 . . . 902 . . 49 210 11772 Core 2560 | . 192 35 62 74 . . 61 58 72 142 . 17 35 . . . 186 . . . 45 1581 Absorbed by Shields 587 | . . . . . . . . 33 . . . . . . . . . . . . . 554 Redirected to Shielding 124 | . . . . . . . . . . . . . . . . . . . . . . 124 Regen/Repaired (Parts) 1359 | . . . . . . . . 95 47 284 16 77 100 . . . 16 . . 90 141 493 Core Remaining (%) 73 | 100 . 9 . . . 66 . 86 92 . . . . . . 83 . . 79 . . . Volleys Fired 679 | 27 76 16 112 90 11 . 3 7 3 6 . 7 8 6 6 . 1 . . . 2 298 Largest 2 | 2 2 2 2 2 2 . 1 1 2 1 . 1 2 1 1 . 1 . . . 1 2 Hottest 188 | 40 60 46 91 101 91 . 43 43 86 43 . 43 86 43 7 . 7 . . . 80 188 Shots Fired 1209 | 54 149 33 221 175 22 . 3 7 4 6 . 7 11 6 6 . 1 . . . 2 502 Gun 1013 | 54 149 32 212 81 11 . . . . . . . . . . . . . . . 1 473 Cannon 134 | . . . 5 91 11 . . . . . . . . . . . . . . . . 27 Launcher 40 | . . 1 4 3 . . 3 7 4 3 . 2 9 4 . . . . . . . . Special 22 | . . . . . . . . . . 3 . 5 2 2 6 . 1 . . . 1 2 Kinetic 879 | 54 142 32 108 81 11 . . . . . . . . . . . . . . . . 451 Thermal 256 | . . . 109 91 11 . . . . . . . . . . . . . . . . 45 Explosive 40 | . . 1 4 3 . . 3 7 4 3 . 2 9 4 . . . . . . . . Electromagnetic 12 | . 7 . . . . . . . . . . . . . . . . . . . 1 4 Robot Hit Streak 26 | 9 19 9 26 22 25 . . 3 1 3 . 8 10 6 2 . . . . . 3 25 Robot Miss Streak 8 | 5 6 4 4 4 1 . . 1 1 . . . 1 . 1 . . . . . 1 8 Penetration Max 3 | . . . . . . . . . . . . . . . . . . . . . . 3 Secondary Targets 9 | . 1 . 2 . . . . . . . . . . . . . . . . . . 6 Max Gunslinging Chain 1 | . 1 . 1 . . . . . . . . . . . . . . . . . . 1 Shots Hit Robots 930 | 24 114 25 155 130 18 . 17 21 3 15 . 10 18 7 8 1 23 . . 6 13 322 Core Hits 457 | 15 41 13 65 63 8 . 11 20 8 6 . 8 13 . . . 2 . . . 1 183 Critical Kills 38 | . 2 . . . . . . . . . . . . . . . 2 . . . . 34 Critical Parts Destroyed 40 | . 3 . . . . . . . . . . . . 2 . 1 5 . . . 1 28 Critical Strikes 113 | . 5 . 13 1 . . 1 3 . . . . 1 2 . 1 7 . . . 1 78 Burn 20 | . . . 13 . . . . . . . . . . . . . . . . . . 7 Destroy 73 | . 1 . . 1 . . . . . . . . . . . . . . . . . 71 Smash 15 | . 4 . . . . . . . . . . . . 2 . 1 7 . . . 1 . Sever 5 | . . . . . . . 1 3 . . . . 1 . . . . . . . . . Melee Attacks 486 | . 26 . . . . . 64 24 21 78 . 20 13 57 4 14 88 2 3 14 24 34 Impact 265 | . 26 . . . . . . . . . . . 1 57 4 14 88 2 3 14 24 32 Slashing 221 | . . . . . . . 64 24 21 78 . 20 12 . . . . . . . . 2 Piercing . | . . . . . . . . . . . . . . . . . . . . . . . Sneak Attacks 65 | . 4 . . . . . 7 15 2 6 . 4 2 6 . 1 9 . . 6 2 1 Combat Hostiles 2 | . . . . . . . . 2 . . . . . . . . . . . . . . Follow-up Attacks . | . . . . . . . . . . . . . . . . . . . . . . . Damage Inflicted 30778 | 254 1716 364 2702 3030 407 . 1075 1840 521 967 . 676 1172 578 335 107 1715 . . 541 759 12019 Guns 16917 | 254 1084 364 2617 1022 212 . . . . . . . . . . . . . . . . 11364 Cannons 2344 | . . . 85 1523 195 . . . . . . . . . . . . . . . . 541 Explosions 2389 | . . . . 479 . . 230 704 344 . . 280 352 . . . . . . . . . Melee 9083 | . 603 . . . . . 845 1136 177 967 . 396 820 578 335 107 1705 . . 541 759 114 Ramming 45 | . 29 . . 6 . . . . . . . . . . . . 10 . . . . . Kinetic 14906 | 254 1052 364 1255 1022 212 . . . . . . . . . . . . . . . . 10747 Thermal 4297 | . . . 1447 1523 195 . . . . . . . . . . . . . . . . 1132 Explosive 2389 | . . . . 479 . . 230 704 344 . . 280 352 . . . . . . . . . Electromagnetic 58 | . 32 . . . . . . . . . . . . . . . . . . . . 26 Impact 4839 | . 603 . . . . . . . . . . . 134 578 335 107 1705 . . 541 759 77 Slashing 4244 | . . . . . . . 845 1136 177 967 . 396 686 . . . . . . . . 37 Piercing . | . . . . . . . . . . . . . . . . . . . . . . . Highest Corruption 18 | . 1 1 1 1 1 . 6 6 . 9 . . 1 1 1 1 7 7 7 . 3 18 Average Corruption 3 | . 1 1 1 1 1 . 5 6 . 2 . . 1 1 1 1 4 7 7 . 2 6 Corruption Purged 9 | . . . . . . . . . . 9 . . . . . . . . . . . . Corruption Blocked . | . . . . . . . . . . . . . . . . . . . . . . . Effects 209 | . 8 11 5 18 12 . 35 15 . 11 . . 2 . . 1 6 1 8 . 2 74 Message Errors 49 | . 1 2 1 1 . . 13 6 . 3 . . 1 . . . 2 . 2 . . 17 Matter Fused 50 | . 3 . 1 5 5 . 9 2 . 2 . . 1 . . 1 1 . 2 . . 18 Heat Flow Errors 36 | . 2 1 2 3 3 . 3 3 . 2 . . . . . . . 1 1 . 1 14 Energy Discharges 19 | . . 3 . 1 2 . 3 . . 1 . . . . . . . . 2 . . 7 Parts Rejected 2 | . 1 . . . . . . . . . . . . . . . . . . . . 1 Parts Fused 1 | . . . . . . . 1 . . . . . . . . . . . . . . . Data Loss (minor) 25 | . 1 2 . 4 1 . 1 3 . 2 . . . . . . 2 . 1 . . 8 Data Loss (major) 10 | . . 1 . 1 . . 3 . . 1 . . . . . . 1 . . . 1 2 Misfires 3 | . . 1 . 2 . . . . . . . . . . . . . . . . . . Alerts 9 | . . 1 . 1 1 . 2 1 . . . . . . . . . . . . . 3 Weapon Failures 5 | . . . 1 . . . . . . . . . . . . . . . . . . 4 Overload Shots . | . . . . . . . . . . . . . . . . . . . . . . . Overflow Damage 3762 | . 168 . 3 42 . . 153 60 60 406 . 146 269 560 145 107 925 . . 351 323 44 Projectiles 25 | . . . 3 . . . . . . . . . . . 15 . . . . . . 7 Explosions 139 | . . . . 42 . . . . 60 9 . 8 20 . . . . . . . . . Melee 3598 | . 168 . . . . . 153 60 . 397 . 138 249 560 130 107 925 . . 351 323 37 Knockbacks 27 | . 4 . . . . . . . . . . . . 2 2 . 9 . . 4 6 . Impact 26 | . 4 . . . . . . . . . . . . 2 1 . 9 . . 4 6 . Kinetic . | . . . . . . . . . . . . . . . . . . . . . . . Secondary 1 | . . . . . . . . . . . . . . . 1 . . . . . . . Self-Inflicted Damage 377 | . . . 8 48 . . . . 12 35 . . 269 . . . 5 . . . . . Shots 10 | . . . 1 1 . . . . 1 1 . . 6 . . . . . . . . . Rammed 8 | . 5 . . 2 . . . . . . . . . . . . 1 . . . . . Targets Rammed 8 | . 5 . . 2 . . . . . . . . . . . . 1 . . . . . Kicked . | . . . . . . . . . . . . . . . . . . . . . . . Crushed . | . . . . . . . . . . . . . . . . . . . . . . . Highest Temperature 341 | . 341 238 233 262 257 . 202 276 48 250 . . 12 10 4 4 161 59 124 . 70 214 Average Temperature 52 | . 48 91 39 63 64 . 39 76 25 88 . . 6 9 4 4 33 32 93 . 41 77 Received Heat Transfer 2097 | . 471 45 270 231 45 . 6 113 9 39 . . . . . . . . . . . 868 Effects 2 | . 1 . . 1 . . . . . . . . . . . . . . . . . . Energy Bleed 1 | . . . . 1 . . . . . . . . . . . . . . . . . . Short Circuit 1 | . 1 . . . . . . . . . . . . . . . . . . . . . Siege Activations . | . . . . . . . . . . . . . . . . . . . . . . . Martial Activations . | . . . . . . . . . . . . . . . . . . . . . . . Shielding Activations 1 | . . . . . . . . . . . . . . . . . . . . . . 1 Total Turns 30 | . . . . . . . . . . . . . . . . . . . . . . 30 Longest Duration 30 | . . . . . . . . . . . . . . . . . . . . . . 30 Robots Disrupted . | . . . . . . . . . . . . . . . . . . . . . . . Combat Hostiles . | . . . . . . . . . . . . . . . . . . . . . . . Robots Corrupted 27 | . 4 . . . . . . . . . . . . 5 3 1 7 . . 4 3 . Combat Hostiles 5 | . 1 . . . . . . . . . . . . . 3 . . . . . 1 . Parts Fried 43 | . 4 . . . . . . . . . . . . 3 1 2 11 . . 16 5 1 Impact Corruptions 99 | . 7 . . . . . . . . . . . 4 23 5 9 32 . . 11 7 1 Robots Melted 1 | . . . 1 . . . . . . . . . . . . . . . . . . . Combat Hostiles 1 | . . . 1 . . . . . . . . . . . . . . . . . . . Parts Melted 11 | . . . 7 3 . . . . . . . . . . . . . . . . . 1 Heat Transferred 9075 | . . . 3996 2627 333 . . . . . . . . . . . . . . . . 2119 Parts Sabotaged 8 | . . . . . . . . . . . . . . . . . . . . . . 8 Parts Stolen . | . . . . . . . . . . . . . . . . . . . . . . . Parts Stripped . | . . . . . . . . . . . . . . . . . . . . . . . Power Chain Reactions 1 | . . . . . . . . . . . . 1 . . . . . . . . . . Alert | -11 -10 -10 -9 -9 -9 -9 -6 -6 -5 -4 -4 -4 -4 -4 -4 -3 -3 -3 -3 -2 -2 -2 ------- Run | Yrd Mat Min Mat Sto Rec Scr Fac Ext Fac Fac Was Fac Upp Upp Zhi Pro Res Arm Lab Res Tes Frg Maximum Alert Level 4 | . 1 . 2 3 1 . 1 2 2 1 . 1 . . . . . . . . . 4 Low Security (%) 51 | 100 96 100 29 4 14 . 87 34 . 40 100 97 . . . . 100 100 . 100 100 34 Level 1 28 | . 3 . 61 28 85 . 12 10 97 59 . 2 . . . . . . . . . 14 Level 2 9 | . . . 8 44 . . . 55 2 . . . . . . . . . . . . 11 Level 3 5 | . . . . 22 . . . . . . . . . . . . . . . . . 16 Level 4 4 | . . . . . . . . . . . . . . . . . . . . . . 22 Level 5 . | . . . . . . . . . . . . . . . . . . . . . . . High Security . | . . . . . . . . . . . . . . . . . . . . . . . Max Security . | . . . . . . . . . . . . . . . . . . . . . . . Peak Influence 1456 | 10 206 78 500 840 313 . 240 641 519 350 73 203 . . . . 99 40 . 45 64 1456 Initial 312 | . . 78 . 209 312 . . 74 274 254 73 44 . . . . . 38 . . 24 24 Average 259 | 2 70 7 245 507 232 . 109 365 285 187 69 90 . . . . 20 33 . 12 26 575 Influence Increases 10074 | 55 723 93 1167 1234 503 . 563 849 495 818 . 263 120 . 15 . 428 4 . 120 140 2484 Destroy 0b10 Robot/C 3880 | . 360 60 640 660 220 . 80 300 80 20 . 100 80 . . . 20 . . . 20 1240 Destroy 0b10 Robot/NC 595 | 55 30 15 95 90 . . 30 5 10 35 . 15 15 . 15 . 55 . . 30 20 80 Destroy Leader 900 | . 98 10 196 206 . . 16 50 10 12 . 10 10 . . . 8 . . . 4 270 Allied During Kill 260 | . . . 16 165 39 . . 40 . . . . . . . . . . . . . . Successful Hack 269 | . 24 . 35 22 34 . 40 17 10 66 . 4 . . . . 14 . . . 3 . Select Force Hacks 350 | . 60 . 60 . 210 . . . 20 . . . . . . . . . . . . . Disable Machine 285 | . 15 . 15 15 . . 15 15 . 30 . 45 . . . . 15 . . 15 30 75 Destroy Structure 940 | . 1 8 20 31 . . 82 47 140 190 . 74 . . . . 106 4 . 15 18 204 Partial Spotted 390 | . . . . . . . 75 30 45 90 . 15 . . . . 90 . . 15 . 30 Lose Combat Pursuer 2205 | . 135 . 90 45 . . 225 345 180 375 . . 15 . . . 120 . . 45 45 585 Influence Decreases 8649 | 55 523 293 669 932 1142 161 409 442 537 1127 147 200 246 . 10 5 354 56 22 75 141 1103 Entered New Map 1999 | . . 122 . 289 488 161 . 80 287 265 137 19 47 . . 5 . 36 22 . 21 20 Time Decay 5198 | 55 463 171 609 583 494 . 389 302 230 421 10 181 189 . 10 . 283 20 . 65 120 603 Search Patrol Dispatched 200 | . . . . . . . . . . 200 . . . . . . . . . . . . Lost Part 753 | . 60 . 20 20 . . 20 20 10 32 . . 10 . . . 71 . . 10 . 480 Lost Ally 290 | . . . 40 40 160 . . 40 10 . . . . . . . . . . . . . Purge Threat 209 | . . . . . . . . . . 209 . . . . . . . . . . . . Squads Dispatched 78 | . 4 . 5 6 . . 13 3 10 7 . 6 . . . . 11 . . 2 1 10 Investigation 40 | . 2 . 3 1 . . 9 2 8 4 . 4 . . . . 4 . . . . 3 Extermination 18 | . . . . . . . 4 . 1 3 . 1 . . . . 5 . . 1 1 2 Reinforcement 17 | . 2 . 2 2 . . . 1 1 . . 1 . . . . 2 . . 1 . 5 Assault 2 | . . . . 2 . . . . . . . . . . . . . . . . . . Garrison 1 | . . . . 1 . . . . . . . . . . . . . . . . . . Intercept . | . . . . . . . . . . . . . . . . . . . . . . . Searches Triggered 2 | . . . . . . . . . . 2 . . . . . . . . . . . . Construction Impeded 2 | . . . . . . . . . . . . . . . . . 1 . . 1 . . Haulers Reinforced 1 | . . . . . . . . . . . . 1 . . . . . . . . . . Active Scanning Responses . | . . . . . . . . . . . . . . . . . . . . . . . Cargo Convoy Interrupts . | . . . . . . . . . . . . . . . . . . . . . . . Stealth | -11 -10 -10 -9 -9 -9 -9 -6 -6 -5 -4 -4 -4 -4 -4 -4 -3 -3 -3 -3 -2 -2 -2 --------- Run | Yrd Mat Min Mat Sto Rec Scr Fac Ext Fac Fac Was Fac Upp Upp Zhi Pro Res Arm Lab Res Tes Frg Distress Signals 31 | . 3 . 5 4 . . 1 1 1 1 . . . . . . . 1 . . 2 12 Communications Jammed 3 | . . . . . . . . . . . . . . . . . 3 . . . . . Distress Signals 2 | . . . . . . . . . . . . . . . . . 2 . . . . . Times Spotted 500 | . 34 3 51 38 5 . 14 35 25 40 5 5 2 2 . . 15 2 . 4 10 210 Peak Tracking Total 19 | . 5 2 4 5 2 . 8 14 19 13 5 2 1 2 . . 5 3 . 4 5 16 Tactical Retreats 67 | . 5 . 4 3 . . 7 8 2 9 . . 1 . . . 5 . . 1 2 20 Traps | -11 -10 -10 -9 -9 -9 -9 -6 -6 -5 -4 -4 -4 -4 -4 -4 -3 -3 -3 -3 -2 -2 -2 ------- Run | Yrd Mat Min Mat Sto Rec Scr Fac Ext Fac Fac Was Fac Upp Upp Zhi Pro Res Arm Lab Res Tes Frg Traps Triggered 22 | . 3 . 1 1 . . 4 . 2 3 . . . . . . 6 . . . . 2 Indirectly . | . . . . . . . . . . . . . . . . . . . . . . . Trap Hack Attempts . | . . . . . . . . . . . . . . . . . . . . . . . Triggered . | . . . . . . . . . . . . . . . . . . . . . . . Disarmed . | . . . . . . . . . . . . . . . . . . . . . . . Reprogrammed . | . . . . . . . . . . . . . . . . . . . . . . . Reused . | . . . . . . . . . . . . . . . . . . . . . . . Traps Extracted . | . . . . . . . . . . . . . . . . . . . . . . . Installed . | . . . . . . . . . . . . . . . . . . . . . . . Triggered . | . . . . . . . . . . . . . . . . . . . . . . . Machines | -11 -10 -10 -9 -9 -9 -9 -6 -6 -5 -4 -4 -4 -4 -4 -4 -3 -3 -3 -3 -2 -2 -2 ---------- Run | Yrd Mat Min Mat Sto Rec Scr Fac Ext Fac Fac Was Fac Upp Upp Zhi Pro Res Arm Lab Res Tes Frg Machines Disabled 23 | . 1 . 1 1 . . 1 1 . 2 . 3 . 1 1 . 1 . 1 1 3 5 Max in Single Turn 2 | . 1 . 1 1 . . 1 . . 1 . 2 . 1 1 . 1 . 1 1 1 1 Garrison Access 6 | . . . . 1 . . . . 1 2 . . . . . . 1 . . 1 . . Energy Cycler 1 | . . . . . . . . 1 . . . . . . . . . . . . . . Machines Repaired . | . . . . . . . . . . . . . . . . . . . . . . . Machines Dismantled . | . . . . . . . . . . . . . . . . . . . . . . . Machines Sabotaged . | . . . . . . . . . . . . . . . . . . . . . . . Overloaded Fab Kills . | . . . . . . . . . . . . . . . . . . . . . . . Hacking | -11 -10 -10 -9 -9 -9 -9 -6 -6 -5 -4 -4 -4 -4 -4 -4 -3 -3 -3 -3 -2 -2 -2 --------- Run | Yrd Mat Min Mat Sto Rec Scr Fac Ext Fac Fac Was Fac Upp Upp Zhi Pro Res Arm Lab Res Tes Frg Machines Accessed 138 | . 8 . 14 6 13 4 21 6 12 13 . 9 1 . 4 . 9 . 1 5 6 6 Terminals 68 | . 6 . 10 5 6 . 9 5 2 8 . 3 1 . . . 2 . . 4 4 3 Fabricators 12 | . . . . . . . 4 . 4 2 . . . . . . 2 . . . . . Repair Stations 5 | . . . . . . . . 1 1 1 . 1 . . . . . . . . 1 . Recycling Units 31 | . 2 . 2 . 7 . 6 . 4 . . 4 . . . . 3 . . . . 3 Scanalyzers 7 | . . . 2 . . . 2 . . . . 1 . . . . 1 . . . 1 . Garrison Access 6 | . . . . 1 . . . . 1 2 . . . . . . 1 . . 1 . . Total Hacks 361 | . 24 . 39 15 34 15 65 8 33 40 . 20 1 . 17 . 16 . 1 8 13 12 Successful 252 | . 13 . 32 8 24 15 37 6 20 32 . 13 1 . 17 . 11 . 1 2 11 9 Failed 109 | . 11 . 7 7 10 . 28 2 13 8 . 7 . . . . 5 . . 6 2 3 Catastrophic 14 | . 2 . . . 1 . 3 1 1 3 . 2 . . . . . . . 1 . . Database Lockouts . | . . . . . . . . . . . . . . . . . . . . . . . Manual 195 | . 19 . 26 6 26 . 36 3 16 27 . 10 . . . . 7 . . 4 6 9 Terminals 190 | . 19 . 28 12 20 . 29 7 5 34 . 8 1 . . . 3 . . 7 8 9 Fabricators 34 | . . . . . . . 10 . 17 3 . . . . . . 4 . . . . . Repair Stations 8 | . . . . . . . . 1 2 1 . 2 . . . . . . . . 2 . Recycling Units 53 | . 5 . 4 . 14 . 13 . 5 . . 5 . . . . 4 . . . . 3 Scanalyzers 31 | . . . 7 . . . 13 . . . . 5 . . . . 3 . . . 3 . Garrison Access 12 | . . . . 3 . . . . 4 2 . . . . . . 2 . . 1 . . Terminal Hacks 88 | . 3 . 7 5 1 15 3 3 . 19 . 2 1 . 17 . 1 . 1 1 3 6 Record 22 | . . . 1 . . 14 . . . . . . 1 . 5 . . . 1 . . . Part Schematic 9 | . . . 1 2 1 . 1 . . . . . . . 4 . . . . . . . Robot Analysis 8 | . 2 . 1 . . . . . . . . . . . 4 . . . . . . 1 Prototype ID Bank 6 | . . . 1 . . . . . . . . . . . 4 . . . . . 1 . Open Door 6 | . . . . 2 . . 1 3 . . . . . . . . . . . . . . Level Access Points 1 | . . . . . . . . . . 1 . . . . . . . . . . . . Branch Access Points 6 | . . . 1 . . . 1 . . 2 . 1 . . . . 1 . . . . . Emergency Access Points 1 | . . . . . . . . . . 1 . . . . . . . . . . . . Machine Index 1 | . . . . . . . . . . 1 . . . . . . . . . . . . Terminal Index 2 | . . . . . . . . . . 2 . . . . . . . . . . . . Repair Station Index 1 | . . . . . . . . . . . . . . . . . . . . 1 . . Recycling Unit Index 1 | . . . . . . . . . . 1 . . . . . . . . . . . . Alert Level 3 | . . . . . . . . . . 3 . . . . . . . . . . . . Unreport Threat 2 | . . . . . . . . . . 2 . . . . . . . . . . . . Locate Traps 7 | . 1 . 2 1 . . . . . 2 . . . . . . . . . . . 1 Dispatch Records 2 | . . . . . . . . . . 1 . . . . . . . . . . . 1 Maintenance Status 1 | . . . . . . . . . . 1 . . . . . . . . . . . . Recall Extermination 2 | . . . . . . . . . . 1 . . . . . . . . . . . 1 Hauler Manifests 1 | . . . . . . . . . . . . . . . . . . . . . 1 . Zone Layout 5 | . . . . . . . . . . 1 . 1 . . . . . . . . 1 2 Proto ID Catalog 1 | . . . . . . 1 . . . . . . . . . . . . . . . . Fabricator Hacks 19 | . . . . . . . 5 . 9 1 . . . . . . 4 . . . . . Network Status 2 | . . . . . . . 1 . 1 . . . . . . . . . . . . . Load Schematic 11 | . . . . . . . 3 . 5 1 . . . . . . 2 . . . . . Build 6 | . . . . . . . 1 . 3 . . . . . . . 2 . . . . . Repair Station Hacks 4 | . . . . . . . . . . . . 2 . . . . . . . . 2 . Scan Component 2 | . . . . . . . . . . . . 1 . . . . . . . . 1 . Repair 2 | . . . . . . . . . . . . 1 . . . . . . . . 1 . Recycling Unit Hacks 12 | . 2 . 2 . 6 . 2 . . . . . . . . . . . . . . . Retrieve Components 12 | . 2 . 2 . 6 . 2 . . . . . . . . . . . . . . . Scanalyzer 27 | . . . 6 . . . 11 . . . . 5 . . . . 2 . . . 3 . Insert Component 11 | . . . 2 . . . 2 . . . . 2 . . . . 2 . . . 3 . Analyze 6 | . . . 1 . . . 2 . . . . 3 . . . . . . . . . . Retrieve Study 10 | . . . 3 . . . 7 . . . . . . . . . . . . . . . Garrison Access Hacks 6 | . . . . 1 . . . . 1 2 . . . . . . 1 . . 1 . . Seal Access 6 | . . . . 1 . . . . 1 2 . . . . . . 1 . . 1 . . Unauthorized Hacks 96 | . 8 . 17 2 17 . 16 3 10 10 . 4 . . . . 3 . . . 3 3 Terminals 56 | . 6 . 15 2 10 . 10 2 1 7 . . . . . . . . . . 3 . Track 5 | . . . . . . . . 1 . 1 . . . . . . . . . . 3 . Assimilate 2 | . . . . . . . . 1 1 . . . . . . . . . . . . . Botnet 26 | . 3 . 7 1 5 . 5 . . 5 . . . . . . . . . . . . Skim 23 | . 3 . 8 1 5 . 5 . . 1 . . . . . . . . . . . . Fabricators 7 | . . . . . . . 1 . 4 2 . . . . . . . . . . . . Prioritize 1 | . . . . . . . . . 1 . . . . . . . . . . . . . Download 1 | . . . . . . . . . 1 . . . . . . . . . . . . . Recompile 5 | . . . . . . . 1 . 2 2 . . . . . . . . . . . . Repair Stations 3 | . . . . . . . . 1 1 1 . . . . . . . . . . . . Patch 3 | . . . . . . . . 1 1 1 . . . . . . . . . . . . Recycling Units 30 | . 2 . 2 . 7 . 5 . 4 . . 4 . . . . 3 . . . . 3 Tunnel 11 | . 2 . 2 . 7 . . . . . . . . . . . . . . . . . Fedlink 19 | . . . . . . . 5 . 4 . . 4 . . . . 3 . . . . 3 Scanalyzers . | . . . . . . . . . . . . . . . . . . . . . . . Garrison Access . | . . . . . . . . . . . . . . . . . . . . . . . Data Cores Recovered 2 | . . . . . . . 1 . . . . . . . . . . . . 1 . . Used 1 | . . . . . . . . . . . . . . . . . . . . 1 . . Hacking Detections 67 | . 5 . 11 4 7 . 13 1 4 5 . 5 . . . . 3 . . 4 3 2 Full Trace Events 3 | . . . . . . . 2 1 . . . . . . . . . . . . . . Feedback Events . | . . . . . . . . . . . . . . . . . . . . . . . Feedback Blocked . | . . . . . . . . . . . . . . . . . . . . . . . Robot Schematics Acquired . | . . . . . . . . . . . . . . . . . . . . . . . Robots Built . | . . . . . . . . . . . . . . . . . . . . . . . Authchips . | . . . . . . . . . . . . . . . . . . . . . . . Time . | . . . . . . . . . . . . . . . . . . . . . . . Total Robot Build Rating . | . . . . . . . . . . . . . . . . . . . . . . . Part Schematics Acquired 12 | . . . 2 1 1 . 2 . 1 . . 1 . . 4 . . . . . . . Parts Built 7 | . . . . . . . 2 . 3 . . . . . . . 2 . . . . . Authchips 6 | . . . . . . . 1 . 3 . . . . . . . 2 . . . . . Time 407 | . . . . . . . 24 . 161 . . . . . . . 222 . . . . . Total Part Build Rating 39 | . . . . . . . 6 . 15 . . . . . . . 18 . . . . . Part Studies Acquired 10 | . . . 3 . . . 7 . . . . . . . . . . . . . . . Parts Repaired 2 | . . . . . . . . . . . . 1 . . . . . . . . 1 . Time 102 | . . . . . . . . . . . . 74 . . . . . . . . 28 . Parts Recycled . | . . . . . . . . . . . . . . . . . . . . . . . Recycled Matter . | . . . . . . . . . . . . . . . . . . . . . . . Retrieved Matter . | . . . . . . . . . . . . . . . . . . . . . . . Retrieved Components 55 | . 11 . 10 . 32 . 2 . . . . . . . . . . . . . . . Parts Scanalyzed 5 | . . . 2 . . . 1 . . . . 2 . . . . . . . . . . Part Schematics Acquired 3 | . . . 1 . . . 1 . . . . 1 . . . . . . . . . . Parts Damaged . | . . . . . . . . . . . . . . . . . . . . . . . Bothacking | -11 -10 -10 -9 -9 -9 -9 -6 -6 -5 -4 -4 -4 -4 -4 -4 -3 -3 -3 -3 -2 -2 -2 ------------ Run | Yrd Mat Min Mat Sto Rec Scr Fac Ext Fac Fac Was Fac Upp Upp Zhi Pro Res Arm Lab Res Tes Frg Used RIF Installer . | . . . . . . . . . . . . . . . . . . . . . . . Robots Hacked 11 | . . . . . . . . . . 2 . 2 1 1 3 . . . . . 1 1 Non-combat 5 | . . . . . . . . . . 1 . 2 1 1 . . . . . . . . Combat 4 | . . . . . . . . . . . . . . . 3 . . . . . . 1 Robot Hacks Applied 13 | . . . . . . . . . . 1 . 5 2 1 3 . . . . . . 1 parse_system 6 | . . . . . . . . . . . . . 1 1 3 . . . . . . 1 no_distress 3 | . . . . . . . . . . . . 2 1 . . . . . . . . . find_chute 1 | . . . . . . . . . . 1 . . . . . . . . . . . . find_fabricator 1 | . . . . . . . . . . . . 1 . . . . . . . . . . find_dsf 1 | . . . . . . . . . . . . 1 . . . . . . . . . . find_recycling 1 | . . . . . . . . . . . . 1 . . . . . . . . . . Manual 2 | . . . . . . . . . . 1 . . . . . . . . . . 1 . Relay Couplers Released . | . . . . . . . . . . . . . . . . . . . . . . . Fabnet Peak Effective % . | . . . . . . . . . . . . . . . . . . . . . . . Robots Rewired . | . . . . . . . . . . . . . . . . . . . . . . . Allies Hacked . | . . . . . . . . . . . . . . . . . . . . . . . Hacks Repelled . | . . . . . . . . . . . . . . . . . . . . . . . Allies | -11 -10 -10 -9 -9 -9 -9 -6 -6 -5 -4 -4 -4 -4 -4 -4 -3 -3 -3 -3 -2 -2 -2 -------- Run | Yrd Mat Min Mat Sto Rec Scr Fac Ext Fac Fac Was Fac Upp Upp Zhi Pro Res Arm Lab Res Tes Frg Total Allies 20 | . . 2 . 12 . . . 3 1 1 . . . . . . . . . . 1 . Largest Group 12 | . . 2 2 12 10 2 2 2 1 1 . . . . . . . . . . 1 . Highest-Rated Group 159 | . . 42 42 150 110 16 16 159 26 45 . . . . . . . . . . 10 . Highest-Rated Ally 159 | . . 31 31 31 31 8 8 159 26 45 . . . . . . . . . . 10 . Initial UFD Resources 107 | . . . . . . . 22 42 46 66 66 66 84 84 84 87 87 103 103 107 107 107 Total Orders 3 | . . . . 2 . . 1 . . . . . . . . . . . . . . . STAY 2 | . . . . 1 . . 1 . . . . . . . . . . . . . . . FOLLOW 1 | . . . . 1 . . . . . . . . . . . . . . . . . . Ally Attacks 127 | . . . 12 46 31 . . 38 . . . . . . . . . . . . . . Total Damage 2226 | . . . 168 483 282 . . 1293 . . . . . . . . . . . . . . Kills 27 | . . . 3 9 7 . . 8 . . . . . . . . . . . . . . Allies Corrupted . | . . . . . . . . . . . . . . . . . . . . . . . Allies Melted 2 | . . . . . . . . . . . . . . . . . . . . . . 2 Intel | -11 -10 -10 -9 -9 -9 -9 -6 -6 -5 -4 -4 -4 -4 -4 -4 -3 -3 -3 -3 -2 -2 -2 ------- Run | Yrd Mat Min Mat Sto Rec Scr Fac Ext Fac Fac Was Fac Upp Upp Zhi Pro Res Arm Lab Res Tes Frg Active Infowar (turns) 19539 | 120 696 1424 2588 1802 1317 2158 1337 660 484 1184 31 391 584 441 110 214 987 43 459 194 241 2074 Optics 7305 | . . . . . . . . . 352 1184 31 391 584 441 110 214 987 43 459 194 241 2074 Sensors 8218 | . . . . . . 775 1336 404 476 1171 31 391 584 418 105 214 987 43 459 194 211 419 Terrain 1 | . . . . . . 1 . . . . . . . . . . . . . . . . Seismic 9330 | 120 696 1424 2588 1802 1317 1383 . . . . . . . . . . . . . . . . Decoding 3332 | . . . . . . . 1314 660 484 874 . . . . . . . . . . . . Cloaking 88 | . . . . . . . . . . . . . . . . . . . . . . 88 Jamming 1538 | . . . . . . . . . . 2 . . . 275 81 214 966 . . . . . ECM 1 | . . . . . . . . . 1 . . . . . . . . . . . . . Robot Analysis Total 8 | . 2 . 1 . . . . . . . . . . . 4 . . . . . . 1 Derelict Logs Recovered 3 | . . 1 . . . . . . . . . . . 2 . . . . . . . . Drone Launches . | . . . . . . . . . . . . . . . . . . . . . . . Drone Recoveries . | . . . . . . . . . . . . . . . . . . . . . . . Decoded 0b10 Intel 64 | . . . . . . . 25 11 10 18 . . . . . . . . . . . . Traps 38 | . . . . . . . 12 6 8 12 . . . . . . . . . . . . Emergency Access 26 | . . . . . . . 13 5 2 6 . . . . . . . . . . . . Exploration | -11 -10 -10 -9 -9 -9 -9 -6 -6 -5 -4 -4 -4 -4 -4 -4 -3 -3 -3 -3 -2 -2 -2 ------------- Run | Yrd Mat Min Mat Sto Rec Scr Fac Ext Fac Fac Was Fac Upp Upp Zhi Pro Res Arm Lab Res Tes Frg Turns Passed 21847 | 276 1731 1424 2591 1802 1317 2165 1337 660 484 1184 31 391 584 441 110 214 987 43 459 194 241 3181 Spaces Moved 23411 | 118 766 613 1388 828 818 1351 3236 985 1058 2236 103 678 871 968 272 633 2263 38 385 507 631 2665 Core 5 | 1 . . . . . . . . . . . . . . . . . . . . . 4 Treads 5940 | 117 766 613 1388 828 818 1351 7 . . . . . . . . . . . . . . 52 Legs 519 | . . . . . . . . . . . . . . . . . . . . . . 519 Wheels 1122 | . . . . . . . . . . . . . . . . . . . . . . 1122 Hover . | . . . . . . . . . . . . . . . . . . . . . . . Flight 15825 | . . . . . . . 3229 985 1058 2236 103 678 871 968 272 633 2263 38 385 507 631 968 Fastest Speed 5 | 50 160 160 145 145 155 155 20 14 20 14 25 25 28 21 20 20 5 97 27 23 13 13 Average Speed 62 | 159 164 160 147 153 155 155 22 23 24 24 25 25 29 28 22 20 19 97 31 23 22 70 Slowest Speed 450 | 160 240 160 160 155 155 155 155 96 96 106 25 105 108 108 95 20 98 97 97 27 96 450 Overloaded Moves 129 | . . . . . . . . 20 . 21 . . . 10 . . 13 . . . 17 48 Propulsion Burnouts 1 | . . . . . . . . . . . . . . . . . 1 . . . . . Robots Hopped 50 | . . . . . . . 8 16 3 3 . . . . . . 5 . . . 8 7 Potential Cave-ins 11 | . . . 3 . . . . . . . . . . . . . . . . . . 8 Cave-ins Triggered 1 | . . . . . . . . . . 1 . . . . . . . . . . . . Teleports 2 | . . . . . . . . . . . . . . . . . . 1 . . . 1 Exploration Rate (%) 64 | 6 95 98 98 93 99 87 56 89 27 56 78 19 83 86 61 80 46 6 96 13 61 56 Regions Visited 22 Branch Regions 13 Pre-discovered Areas 23 | . 2 . 4 . 10 2 1 . . . . . . 1 3 . . . . . . . Known Exits Taken 14 | . . . 1 1 . . 1 1 . . . 1 1 1 1 1 1 1 1 1 1 . Unknown Exits Taken 6 | 1 1 1 . . 1 1 . . 1 . . . . . . . . . . . . . Scrap Searched 11 | . . 1 . . . 4 . . . . . . 2 3 . 1 . . . . . . Spaces Dug 495 | . . . . . . . 65 . 44 91 . 38 26 110 . 13 53 2 . 5 6 42 Terrain Destroyed 868 | . . 8 46 32 . . 87 59 76 101 . 39 97 128 . 13 53 2 . 5 6 116 Melee 293 | . . . . . . . 46 . 19 57 . 13 . 50 . 13 53 2 . 5 6 29 Projectile 85 | . . . . . . . . . . . . . . . . . . . . . . 85 AOE 488 | . . 8 46 32 . . 41 59 57 44 . 26 97 78 . . . . . . . . Terrain Rammed . | . . . . . . . . . . . . . . . . . . . . . . . Walls Destroyed . | . . . . . . . . . . . . . . . . . . . . . . . Machines Disabled . | . . . . . . . . . . . . . . . . . . . . . . . Actions | -11 -10 -10 -9 -9 -9 -9 -6 -6 -5 -4 -4 -4 -4 -4 -4 -3 -3 -3 -3 -2 -2 -2 --------- Run | Yrd Mat Min Mat Sto Rec Scr Fac Ext Fac Fac Was Fac Upp Upp Zhi Pro Res Arm Lab Res Tes Frg Total 28910 | 155 1052 1023 1710 1183 846 1423 3733 1358 1242 2748 108 862 1166 1070 311 704 2707 42 717 567 694 3489 Wait 3628 | . 132 386 172 227 14 52 368 343 124 384 . 149 258 10 3 56 306 2 315 34 29 264 Move 23298 | 117 765 612 1387 827 817 1350 3219 954 1052 2231 102 677 870 967 271 632 2252 37 384 506 616 2653 Hop 42 | . . . . . . . 8 14 2 2 . . . . . . 5 . . . 6 5 Pick Up 114 | 5 19 2 10 6 2 4 9 4 5 9 3 1 1 5 1 . 1 . 4 2 2 19 Fast Attach 172 | 6 10 . 4 3 . 4 9 1 11 3 . 2 1 9 10 . 10 . 4 5 4 76 Attach 94 | . 6 2 5 2 . 2 14 2 7 14 1 . 3 . . . 6 1 2 3 4 20 Detach 52 | . 2 . . . . . 6 2 3 8 . . 2 1 . . 2 . 2 2 4 18 Swap 85 | . 3 4 8 11 . 3 3 3 7 7 . 4 7 8 6 2 4 . . . . 5 Drop 153 | . 8 1 12 11 2 8 15 4 7 6 2 2 3 7 10 . 1 . 3 1 3 47 Fire 679 | 27 76 16 112 90 11 . 3 7 3 6 . 7 8 6 6 . 1 . . . 2 298 Melee 486 | . 26 . . . . . 64 24 21 78 . 20 13 57 4 14 88 2 3 14 24 34 Ram 1 | . . . . . . . . . . . . . . . . . 1 . . . . . Kick . | . . . . . . . . . . . . . . . . . . . . . . . Crush 7 | . 5 . . 2 . . . . . . . . . . . . . . . . . . Escape Stasis 75 | . . . . . . . 15 . . . . . . . . . 30 . . . . 30 Rewire 4 | . . . . 4 . . . . . . . . . . . . . . . . . . Trap . | . . . . . . . . . . . . . . . . . . . . . . . Miscellaneous 20 | . . . . . . . . . . . . . . . . . . . . . . 20 Route ------- -11/Scrapyard -10/Materials (discovered 5 exits: *Mat x3 / [*Min x2]) -10/Mines (discovered 3 exits: *Mat x2 / Exi) -9/Materials (discovered 5 exits: *Mat x3 / *Min / *Sto) -9/Storage (discovered 2 exits: *Mat / *Rec) -9/Recycling (discovered 2 exits: [*Fac] / *Scr) -9/Scraptown (discovered 2 exits: *Fac x2) -6/Factory (discovered 7 exits: *Fac x3 / *Low x2 / *Ext x2) -6/Extension (discovered 2 exits: *Fac / *Cet) -5/Factory (discovered 2 exits: *Fac / *Upp) -4/Factory (discovered 6 exits: *Res x4 / Upp x2) -4/Waste -4/Factory (discovered 2 exits: *Upp x2) -4/Upper Caves -4/Upper Caves (discovered 2 exits: *Res / *Zhi) -4/Zhirov -3/Proximity Caves -3/Research (discovered 3 exits: *Res / *Arm / [*Qua]) -3/Armory -3/Lab -2/Research (discovered 2 exits: *Tes x2) -2/Testing (discovered 2 exits: *Sec / *Frg) -2/Protoforge (discovered 1 exit: [*Acc]) History --------- Turn | Location | Event 7 | -11/Scrapyard | Discovered new exit (range 15) 277 | -11/Scrapyard | Entered Materials 312 | -10/Materials | Build established: Mutant 420 | -10/Materials | Discovered new exit (range 9) 937 | -10/Materials | Discovered new exit (range 8) 1020 | -10/Materials | Discovered new exit (range 16) 1368 | -10/Materials | Discovered new exit (range 5) 1423 | -10/Materials | Core integrity fell below 50% 1545 | -10/Materials | Lost 3 parts (1n1u1w) 1774 | -10/Materials | Discovered new exit (range 15) 2008 | -10/Materials | Entered Mines 2058 | -10/Mines | Found a damaged Exp. Sensor Array with a note attached 2062 | -10/Mines | Found Prototype Device 2072 | -10/Mines | Assembled infested the area 2077 | -10/Mines | Assisted by a Guerilla fighting off Assembled 2532 | -10/Mines | Deemed a non-threat by the Exiles lab entrance 2636 | -10/Mines | Discovered new exit (range 4) 2747 | -10/Mines | Core integrity fell below 20% 3066 | -10/Mines | Lost 3 parts (1p2n) 3101 | -10/Mines | Discovered new exit (range 8) 3352 | -10/Mines | Identified exit to Exiles 3432 | -10/Mines | Entered Materials 3432 | -9/Materials | Accompanied by 2 allies 3432 | -9/Materials | Evolved 2 slots: Propulsion x1, Utility x1 3437 | -9/Materials | Led the pair of lost Derelicts to an unsafe place 3770 | -9/Materials | Discovered new exit (range 7) 3786 | -9/Materials | Discovered new exit (range 16) 4139 | -9/Materials | Identified exit to Mines 4139 | -9/Materials | Identified exit to Storage 4246 | -9/Materials | Learned Storage emergency access door positions 4293 | -9/Materials | Identified Exp. Sensor Array 4344 | -9/Materials | Learned Materials emergency access door positions 4345 | -9/Materials | Learned location of Zion (-7) 4351 | -9/Materials | Identified exit to Materials 4389 | -9/Materials | Learned Storage emergency access door positions 5588 | -9/Materials | Discovered exit to Materials (range 16) 6023 | -9/Materials | Entered Storage 6024 | -9/Storage | Identified exit to Recycling 6652 | -9/Storage | Discovered exit to Materials (range 5) 6778 | -9/Storage | Build established: Scavenger-Mutant 6933 | -9/Storage | Used back door to open Recycling access 7083 | -9/Storage | Assisted by bots powering up and referring to "LRC-V3" 7159 | -9/Storage | Garrison activated, responded to threat 7359 | -9/Storage | Met a pair of Derelict thieves 7382 | -9/Storage | Build established: Commander-Mutant 7825 | -9/Storage | Entered Recycling 7825 | -9/Recycling | Accompanied by 10 allies 7932 | -9/Recycling | Lost 7 allies 8088 | -9/Recycling | Discovered new exit (range 16) 8183 | -9/Recycling | Build established: Scavenger-Mutant 8824 | -9/Recycling | Learned 2 Materials zone layouts 8871 | -9/Recycling | Learned Materials stockpile data 8910 | -9/Recycling | Learned Storage emergency access door positions 8954 | -9/Recycling | Learned location of Storage (-9) 8961 | -9/Recycling | Learned 2 Materials zone layouts 9002 | -9/Recycling | Learned 2 Materials zone layouts 9105 | -9/Recycling | Scanned before Scraplab entrance 9126 | -9/Recycling | Entered Scraplab 9139 | -9/Recycling | Discovered new exit (range 2) 9142 | -9/Recycling | Entered Scraptown 9142 | -9/Scraptown | Accompanied by 2 allies 9142 | -9/Scraptown | System corruption cleaned by C-Scrubber 9463 | -9/Scraptown | Discovered new exit (range 13) 9547 | -9/Scraptown | Visited IN-MT5's Study 9578 | -9/Scraptown | Visited Red Mages 9796 | -9/Scraptown | Visited Shadow of the Wyrm 9809 | -9/Scraptown | Visited Comm Corps 9871 | -9/Scraptown | Visited Supply Room 9897 | -9/Scraptown | Visited Junk Repository 9942 | -9/Scraptown | Visited UFD Registry 9942 | -9/Scraptown | Registered with UFD as "Biobrain" 9996 | -9/Scraptown | Visited Scrap Suit Storage 10032 | -9/Scraptown | Visited Research Penetration Think Tank 10061 | -9/Scraptown | Visited Junk Repository 10108 | -9/Scraptown | Visited LU-1G1's Boring Crew 10122 | -9/Scraptown | Visited Abandonware Association 10142 | -9/Scraptown | Learned abandonware demo "HACKBUD.EXE" 10142 | -9/Scraptown | Learned abandonware demo "TRNCOAT.EXE" 10184 | -9/Scraptown | Visited Infowarlord's Domain 10209 | -9/Scraptown | Visited Derelict Rescue Squad 10227 | -9/Scraptown | Visited Science Guys 10277 | -9/Scraptown | Visited Curators Association 10345 | -9/Scraptown | Visited A0-MCA Data Center 10440 | -9/Scraptown | Visited Cyclists 10453 | -9/Scraptown | Entered Cyclist Reading Room 10825 | -9/Scraptown | Build established: Mutant 11222 | -9/Scraptown | Met Optimus 11222 | -9/Scraptown | Accepted into 0bPrime 11302 | -9/Scraptown | Discovered new exit (range 3) 11307 | -9/Scraptown | Entered Factory 11307 | -6/Factory | Accompanied by 2 allies 11307 | -6/Factory | Evolved 6 slots: Propulsion x3, Utility x3 11352 | -6/Factory | Identified exit to Lower Caves 11352 | -6/Factory | Identified exit to Extension 11419 | -6/Factory | Fabricated Imp. Signal Interpreter (x2) 11523 | -6/Factory | Loaded intel: 8 recycling unit locations 11538 | -6/Factory | Discovered new exit (range 8) 11541 | -6/Factory | Identified exit to Factory 11585 | -6/Factory | Discovered exit to Factory (range 5) 11619 | -6/Factory | Watched by a mysterious "MATRIX" hacker. 11665 | -6/Factory | Learned location of Protoforge (-2) 11757 | -6/Factory | Discovered exit to Factory (range 8) 12049 | -6/Factory | Build established: Hacker-Sprinter 12644 | -6/Factory | Entered Extension 12708 | -6/Extension | Rescued a captive Derelict 12708 | -6/Extension | Rescued a captive Derelict 12727 | -6/Extension | Spotted B-75 Beast 12810 | -6/Extension | Spotted B-75 Beast 12825 | -6/Extension | Rescued a captive Derelict 12827 | -6/Extension | Rescued a captive Derelict 12841 | -6/Extension | Rescued A7 12926 | -6/Extension | Energy Cycler disabled 13059 | -6/Extension | Discovered exit to Factory (range 10) 13059 | -6/Extension | Discovered new exit (range 6) 13155 | -6/Extension | Identified exit to Cetus 13193 | -6/Extension | Murdered A7 13196 | -6/Extension | Extracted ID and sensor layout for unrecognized location from A7's data core 13197 | -6/Extension | Found Prototype Protection 13198 | -6/Extension | Identified Med. Regenerative Plating 13304 | -6/Extension | Entered Factory 13304 | -5/Factory | Evolved 2 slots: Utility x2 13363 | -5/Factory | Fabricated Imp. Hacking Suite (x1) 13370 | -5/Factory | Loaded intel: 8 recycling unit locations 13506 | -5/Factory | Discovered new exit (range 12) 13508 | -5/Factory | Identified exit to Upper Caves 13582 | -5/Factory | Fabricated Cld. Cesium-ion Thruster? 13626 | -5/Factory | Fabricated Cld. Cesium-ion Thruster (x1) 13753 | -5/Factory | Build established: Hacker-Scout 13771 | -5/Factory | Discovered new exit (range 20) 13788 | -5/Factory | Entered another Factory area 13788 | -4/Factory | Evolved 2 slots: Utility x2 13866 | -4/Factory | Identified exit to Upper Caves 14038 | -4/Factory | Search patrols dispatched 14052 | -4/Factory | Identified exit to Research 14520 | -4/Factory | Spotted B-86 Titan 14662 | -4/Factory | Crushed by falling debris 14788 | -4/Factory | Search patrols dispatched 14972 | -4/Factory | Manually triggered Chute Trap 14972 | -4/Factory | Sucked down chute 14972 | -4/Factory | Entered Waste 14973 | -4/Waste | Spotted C-40 Crusher 14973 | -4/Waste | Spotted C-40 Crusher 14985 | -4/Waste | Spotted C-40 Crusher 14988 | -4/Waste | Found Prototype Device 14993 | -4/Waste | Spotted C-40 Crusher 14997 | -4/Waste | Discovered new exit (range 14) 14997 | -4/Waste | Spotted C-40 Crusher 15001 | -4/Waste | Identified exit to Factory 15003 | -4/Waste | Entered Factory 15022 | -4/Factory | Build established: Hacker-Ninja 15102 | -4/Factory | Repaired Lgt. Quantum Reactor 15121 | -4/Factory | Loaded intel: 8 recycling unit locations 15126 | -4/Factory | Identified Exp. Shield Generator 15394 | -4/Factory | Entered Upper Caves 15845 | -4/Upper Caves | Discovered new exit (range 10) 15847 | -4/Upper Caves | Identified exit to Upper Caves 15978 | -4/Upper Caves | Entered another Upper Caves area 15997 | -4/Upper Caves | Discovered exit to Research (range 10) 16001 | -4/Upper Caves | Learned Research emergency access door positions 16007 | -4/Upper Caves | Found Alien Artifact 16007 | -4/Upper Caves | Identified Dimensional Node Initializer 16007 | -4/Upper Caves | Initialized slip node 16417 | -4/Upper Caves | Discovered new exit (range 3) 16418 | -4/Upper Caves | Identified exit to Zhirov 16419 | -4/Upper Caves | Entered Zhirov 16420 | -4/Zhirov | Discovered new exit (range 3) 16425 | -4/Zhirov | Met Zhirov 16436 | -4/Zhirov | Learned location of Command (-1) 16439 | -4/Zhirov | Zhirov requested help retrieving the SGEMP Prototype 16446 | -4/Zhirov | Found Alien Artifact 16446 | -4/Zhirov | Identified Integrated Reactor 16446 | -4/Zhirov | Installed Integrated Reactor, increased core energy generation (+10) 16484 | -4/Zhirov | Found Alien Artifact 16525 | -4/Zhirov | Identified exit to Proximity Caves 16529 | -4/Zhirov | Entered Proximity Caves 16740 | -3/Proximity Caves | Discovered exit to Research (range 10) 16743 | -3/Proximity Caves | Entered Research 16743 | -3/Research | Evolved 2 slots: Power x1, Propulsion x1 16832 | -3/Research | Discovered new exit (range 23) 16864 | -3/Research | Loaded intel: 5 recycling unit locations 16864 | -3/Research | Targeted by mysterious "MATRIX" hacker. 16977 | -3/Research | Identified Transdimensional Reconstructor 17273 | -3/Research | Fabricated Imp. Q-thruster (x1) 17275 | -3/Research | Fabricated Imp. Q-thruster? 17375 | -3/Research | Discovered new exit (range 5) 17378 | -3/Research | Identified exit to Research 17605 | -3/Research | Identified exit to Armory 17730 | -3/Research | Entered Armory 17739 | -3/Armory | Warped through subspace to slip node 17739 | -3/Armory | Discovered new exit (range 1) 17739 | -3/Armory | Identified exit to Lab 17758 | -3/Armory | Lost 4 parts (3n1u) 17773 | -3/Armory | Entered Lab 17773 | -3/Lab | Discovered exit to Research (range 9) 17784 | -3/Lab | Hidden lab's door opened automatically 17784 | -3/Lab | Sensor layout match revealed 17785 | -3/Lab | Gained access to the hidden lab's interior 17785 | -3/Lab | Unable to decrypt terminal 17844 | -3/Lab | Found Alien Artifact 17856 | -3/Lab | Found Quantum Router 17867 | -3/Lab | Found Alien Artifact 17875 | -3/Lab | Unable to decrypt terminal 17889 | -3/Lab | Found Prototype Special Weapon 17889 | -3/Lab | Identified Gui. Remote Datajack 18150 | -3/Lab | Found Prototype Device 18150 | -3/Lab | Identified AEGIS Remote Shield 18153 | -3/Lab | Found Prototype Energy Gun 18153 | -3/Lab | Identified Tachyon Dispersion Ray 18176 | -3/Lab | Build established: Wizard-Scout 18211 | -3/Lab | Found Transdimensional Reconstructor 18232 | -3/Lab | Entered Research 18232 | -2/Research | Evolved 2 slots: Utility x2 18299 | -2/Research | Discovered new exit (range 17) 18389 | -2/Research | Discovered new exit (range 7) 18390 | -2/Research | Identified exit to Testing 18408 | -2/Research | Spotted B-90 Cyclops 18426 | -2/Research | Entered Testing 18438 | -2/Testing | Found Prototype Hackware 18438 | -2/Testing | Identified System Mapper 18470 | -2/Testing | Spotted Striker 18501 | -2/Testing | Repaired Mic. Fission Core 18520 | -2/Testing | Identified Integrated Dissipator 18520 | -2/Testing | Identified Core Regenerator 18521 | -2/Testing | Installed Integrated Dissipator, increased core heat dissipation (+20) 18636 | -2/Testing | Found Tachyon Dispersion Ray 18646 | -2/Testing | Spotted Fortress 18665 | -2/Testing | Discovered new exit (range 5) 18665 | -2/Testing | Discovered new exit (range 6) 18666 | -2/Testing | Identified exit to Section 7 18666 | -2/Testing | Identified exit to Protoforge 18667 | -2/Testing | Entered Protoforge 18699 | -2/Protoforge | Spotted B-90 Cyclops 18754 | -2/Protoforge | Discovered new exit (range 12) 18759 | -2/Protoforge | Superfortress began startup sequence 18762 | -2/Protoforge | Spotted Hotshot 18866 | -2/Protoforge | Spotted Hotshot 18951 | -2/Protoforge | Spotted Hotshot 19054 | -2/Protoforge | Spotted Overlord 19074 | -2/Protoforge | Spotted Hotshot 19076 | -2/Protoforge | Spotted Decapitator 19078 | -2/Protoforge | Spotted Decapitator 19079 | -2/Protoforge | Spotted Decapitator 19080 | -2/Protoforge | Spotted Decapitator 19090 | -2/Protoforge | Warped through subspace 19122 | -2/Protoforge | Spotted Hotshot 19122 | -2/Protoforge | Spotted AP7-3 19124 | -2/Protoforge | Spotted AP7-3 19125 | -2/Protoforge | Spotted Hotshot 19131 | -2/Protoforge | Spotted SKR-2 19131 | -2/Protoforge | Spotted SKR-2 19131 | -2/Protoforge | Spotted SKR-2 19132 | -2/Protoforge | Spotted EXE-6 19133 | -2/Protoforge | Spotted EXE-6 19140 | -2/Protoforge | UFD initiated attack on Protoforge (Readiness: High) 19140 | -2/Protoforge | Loaded intel: 3 recycling unit locations 19163 | -2/Protoforge | Spotted EXE-6 19164 | -2/Protoforge | Spotted EXE-6 19171 | -2/Protoforge | Found Prototype Ballistic Gun 19172 | -2/Protoforge | Found Prototype Ballistic Gun 19174 | -2/Protoforge | Identified Cep. XC Strikerail (x2) 19176 | -2/Protoforge | Optimus greeted in Protoforge 19177 | -2/Protoforge | Found Prototype Processor 19177 | -2/Protoforge | Identified Exp. Core Analyzer 19189 | -2/Protoforge | Found Exp. Core Analyzer 19191 | -2/Protoforge | Found Cep. XC Strikerail 19194 | -2/Protoforge | Found Cep. XC Strikerail 19200 | -2/Protoforge | Found Prototype Device 19200 | -2/Protoforge | Identified Exp. Kinecellerator 19206 | -2/Protoforge | Found Exp. Kinecellerator 19215 | -2/Protoforge | Lost 5 allies 19266 | -2/Protoforge | Found Prototype Processor 19266 | -2/Protoforge | Identified Exp. Melee Analysis Suite 19410 | -2/Protoforge | Destroyed Overlord 19440 | -2/Protoforge | Lost 6 allies 19446 | -2/Protoforge | Found Prototype Processor 19446 | -2/Protoforge | Identified Exp. Targeting Computer 19452 | -2/Protoforge | Found Prototype Device 19452 | -2/Protoforge | Identified Exp. Remote Shield 19561 | -2/Protoforge | Used Core Regenerator, restored core integrity (+271) 19567 | -2/Protoforge | Found UFD Drillbomb 19625 | -2/Protoforge | Spotted Immortal 19645 | -2/Protoforge | Build established: Scavenger-Mutant 19648 | -2/Protoforge | Installed UFD Drillbomb at designated target 19648 | -2/Protoforge | UFD reported confirmed Drillbomb installation 19661 | -2/Protoforge | Spotted Executioner 19663 | -2/Protoforge | Spotted Striker 19690 | -2/Protoforge | Spotted Executioner 19714 | -2/Protoforge | Destroyed Executioner 19717 | -2/Protoforge | P-80 Master assimilated allied 02F08-K 19720 | -2/Protoforge | Spotted 02F08-K 19726 | -2/Protoforge | Spotted Striker 19761 | -2/Protoforge | Lost 6 allies 19767 | -2/Protoforge | Destroyed Striker 19780 | -2/Protoforge | Destroyed Executioner 19850 | -2/Protoforge | Spotted Striker 19852 | -2/Protoforge | Spotted Striker 19854 | -2/Protoforge | Spotted Executioner 19854 | -2/Protoforge | Spotted Executioner 19876 | -2/Protoforge | Spotted Striker 19881 | -2/Protoforge | Lost 4 allies 19913 | -2/Protoforge | Spotted Striker 19956 | -2/Protoforge | Lost 9 allies 19957 | -2/Protoforge | Spotted Striker 19961 | -2/Protoforge | Lost 9 parts (1p3n4u1w) 19971 | -2/Protoforge | Spotted Striker 19985 | -2/Protoforge | Found Scrap Suit 20115 | -2/Protoforge | Found Exp. Core Analyzer 20127 | -2/Protoforge | Destroyed 02F08-K 20158 | -2/Protoforge | Lost 3 allies 20159 | -2/Protoforge | Spotted Immortal 20268 | -2/Protoforge | Spotted Striker 20269 | -2/Protoforge | Destroyed Striker 20307 | -2/Protoforge | UFD reported confirmed Drillbomb installation 20314 | -2/Protoforge | Found Exp. Core Analyzer 20315 | -2/Protoforge | Spotted Immortal 20354 | -2/Protoforge | Build established: Scavenger-Scrapper 20364 | -2/Protoforge | Spotted Striker 20368 | -2/Protoforge | Spotted Striker 20376 | -2/Protoforge | Destroyed Striker 20391 | -2/Protoforge | Found Exp. Melee Analysis Suite 20405 | -2/Protoforge | Lost 4 parts (4u) 20414 | -2/Protoforge | Lost 3 allies 20442 | -2/Protoforge | UFD reported confirmed Drillbomb installation 20446 | -2/Protoforge | Forge Plexus network access discovered 20447 | -2/Protoforge | Spotted Striker 20462 | -2/Protoforge | Spotted Striker 20464 | -2/Protoforge | Spotted Executioner 20464 | -2/Protoforge | Spotted Decapitator 20464 | -2/Protoforge | Spotted Decapitator 20465 | -2/Protoforge | Spotted Decapitator 20466 | -2/Protoforge | Destroyed Decapitator 20468 | -2/Protoforge | Destroyed Decapitator 20469 | -2/Protoforge | Spotted Striker 20481 | -2/Protoforge | Destroyed Decapitator 20485 | -2/Protoforge | Destroyed Striker 20494 | -2/Protoforge | Lost 4 allies 20506 | -2/Protoforge | Destroyed 7 combat bots 20550 | -2/Protoforge | Found Cep. Antimissile System 20550 | -2/Protoforge | Spotted Executioner 20552 | -2/Protoforge | Found Exp. Cloaking Device 20567 | -2/Protoforge | UFD reported confirmed Drillbomb installation 20571 | -2/Protoforge | Spotted Executioner 20574 | -2/Protoforge | Spotted Executioner 20583 | -2/Protoforge | Destroyed Executioner 20588 | -2/Protoforge | Spotted Hotshot 20591 | -2/Protoforge | Spotted Hotshot 20592 | -2/Protoforge | Spotted Hotshot 20600 | -2/Protoforge | Spotted Hotshot 20600 | -2/Protoforge | Spotted Hotshot 20601 | -2/Protoforge | Spotted Hotshot 20603 | -2/Protoforge | Spotted Hotshot 20603 | -2/Protoforge | Spotted Decapitator 20604 | -2/Protoforge | Spotted Decapitator 20604 | -2/Protoforge | Spotted Decapitator 20611 | -2/Protoforge | Destroyed Hotshot 20616 | -2/Protoforge | Destroyed Hotshot 20623 | -2/Protoforge | Destroyed Hotshot 20636 | -2/Protoforge | Found Exp. Core Analyzer 20641 | -2/Protoforge | Spotted Executioner 20642 | -2/Protoforge | Found Exp. Targeting Computer 20647 | -2/Protoforge | Destroyed Executioner 20648 | -2/Protoforge | Lost 8 allies 20649 | -2/Protoforge | Spotted Executioner 20657 | -2/Protoforge | P-80 Master assimilated allied 02FCO-D 20685 | -2/Protoforge | Found Scrap Suit 20730 | -2/Protoforge | Lost 4 allies 20733 | -2/Protoforge | Spotted Executioner 20746 | -2/Protoforge | Destroyed Executioner 20748 | -2/Protoforge | Spotted Striker 20748 | -2/Protoforge | Spotted Striker 20748 | -2/Protoforge | Spotted Executioner 20767 | -2/Protoforge | Spotted Striker 20772 | -2/Protoforge | Destroyed Striker 20775 | -2/Protoforge | Destroyed Striker 20786 | -2/Protoforge | Lost 6 allies 20797 | -2/Protoforge | Spotted Executioner 20860 | -2/Protoforge | Core integrity fell below 50% 21109 | -2/Protoforge | Spotted Executioner 21112 | -2/Protoforge | Spotted Striker 21122 | -2/Protoforge | Destroyed Executioner 21127 | -2/Protoforge | Destroyed Striker 21188 | -2/Protoforge | Spotted Striker 21188 | -2/Protoforge | Spotted Executioner 21197 | -2/Protoforge | Lost 3 parts (1p2w) 21220 | -2/Protoforge | Destroyed Striker 21253 | -2/Protoforge | Destroyed 10 combat bots 21268 | -2/Protoforge | Lost 4 parts (3u1w) 21274 | -2/Protoforge | Spotted Striker 21274 | -2/Protoforge | Spotted Striker 21276 | -2/Protoforge | Found Scrap Suit 21284 | -2/Protoforge | System corruption reached 10% 21285 | -2/Protoforge | Found UFD Drillbomb 21287 | -2/Protoforge | Found Exp. Core Analyzer 21306 | -2/Protoforge | Lost 5 allies 21308 | -2/Protoforge | Spotted Hotshot 21308 | -2/Protoforge | Spotted Hotshot 21316 | -2/Protoforge | Spotted Hotshot 21317 | -2/Protoforge | Destroyed Hotshot 21317 | -2/Protoforge | Spotted Hotshot 21327 | -2/Protoforge | Found UFD Drillbomb 21477 | -2/Protoforge | Installed UFD Drillbomb at designated target 21477 | -2/Protoforge | UFD reported confirmed Drillbomb installation 21485 | -2/Protoforge | Spotted Striker 21496 | -2/Protoforge | Destroyed Striker 21510 | -2/Protoforge | Spotted Hotshot 21510 | -2/Protoforge | Spotted Hotshot 21532 | -2/Protoforge | Spotted Hotshot 21534 | -2/Protoforge | Spotted Hotshot 21556 | -2/Protoforge | Core integrity fell below 20% 21640 | -2/Protoforge | Lost 6 parts (1p1n2u2w) 21811 | -2/Protoforge | Spotted Striker 21814 | -2/Protoforge | Spotted Striker 21814 | -2/Protoforge | Spotted Executioner 21822 | -2/Protoforge | Spotted Executioner 21824 | -2/Protoforge | Destroyed Executioner 21835 | -2/Protoforge | Destroyed Striker 21837 | -2/Protoforge | Destroyed Striker 21848 | -2/Protoforge | Destroyed by Executioner with Helical Railgun Last Messages --------------- 21831_ Penetrated by Slug. 21833_ Striker suffers critical hit (Burn). 21834_ Deflected attack with Hvy. Shield Leg. 21835_ Striker suffers critical hit (Burn). 21835_ Lgt. Quantum Reactor melted. 21835_ Striker destroyed. 21837_ Penetrated by Slug. 21839_ Hvy. Shield Leg destroyed. 21841_ System corrupted: Matter fused (-6). 21841_ Acquired 3 matter. 21841_ P-80 Master suffers critical hit (Burn). 21841_ Penetrated by Slug. 21841_ Lgt. Quantum Reactor destroyed. 21841_ Deflected attack with Hvy. Shield Leg. 21842_ Penetrated by Slug. 21843_ P-80 Master destroyed. 21845_ Hvy. Shield Leg destroyed. 21845_ Penetrated by Slug. 21845_ Adv. Target Analyzer destroyed. 21847_ Exp. Heat Sink destroyed. Map ----- +----------------------------------------------------+ | ???#? ##??##???????? + """" ###?????#####"#+"## | | ???? ##??##??????#???# "" =!# /###### # " % | | ???# ##??## """ # #!!*%!! *% ######"""" % | | ???# ### " " [%%*=* [ ! % "% %" & % | | #### ##??######### ######"" % " %%"" | | ##??##??????# ############ " %[" % " | | ##??##??????# ##????????## %%""!%="%%!" | | ##??##??????? #####?????## "" %!* % [=" | | ##??##??????# #####?????##"%% [! " | | ####### ##??##??????# ???##?????## "" =%! " | | ####?##??##??????# % ??##?????#" !=[ " | | " ####?##??######### ??##?????## "% "# | | " ####?##??######### #####?????#####""""#" "! | | " ####?############# =%#####?????#### " " | | " #### ############# &##??????????## """ " % " | | " #### ##??????????## "" "% " | | " #### ##??????????## " # " | | " #### ##########??## # "" | | ####^ """ """ """ #;##########??## " ## | | ####### ^ # ##??########" %## | | ??????# """ """ """ # ##??## " # | | ??????# # ##??## """ %"% "# | | ??????# """ """!"""[ # """ """ ##??## "" " % | | ????? + !*![!!%E!""" "" ##??## "" #% | | ??????# %!*%[h!/!%!! " ;#??## "" " # % | | ??????##+####+###!=%=%!=!@= ;#??## "% " | | ??????## # [ =#%l*= ##??#####"""" "%"% | | ??????## # %##;##;;########### ###" "% | | ######## """ # #####################"" "" | | ######## "" " #% ##?????????## ## ## | | ?????### #* ##?????????## """ ## "# | | ?????### " " # ##?????????## """ #" ## | | ?????### # ##?????????##"" """ " # | | ?????### # ##?????????##"" """ # # | | ?????### # ##?????????##"T "" " %% # | | ??? ############ ##?????????##"" """ " %% " | | ?""" ### # ##?????????##"" """ "% %% " | | """" ### # ###????????## "# "" | | """" ### # ###????????########""#" %" | | """" ### # ##????????## " " | | ### # ##????????## " "% | | #?# # ##????????##"" """"# " | | ### # ##????????##""" """"# % " | | ### # ##????????##"R """"# %" | | ### # ##????????##""" """"# %" | | +###########+#### ##????????##"" #% " | | ##????????## = # %"# | | ##????????###########% % " | | ##????????###########" % " | | ##????????#####???## " #[ | +----------------------------------------------------+ Best States ------------- Heat Dissipation 121 Energy Generation 63 Energy Capacity 650 Matter Stores 300 Matter Capacity 300 Sight Range 23 Robot Scan Range 20 Terrain Scan Density 10 Jamming Range 16 Cloak Strength 4 Power Amplification 30 Base Temperature (-) 200 Armor Coverage 525 Resistance: EM 20 Propulsion Shielding 15 Weapon Shielding 90 Point Defense Rating 480 Phase Shifting 15 Evasion (%) 70 Targeting Accuracy 20 Target Analysis 12 Core Analysis 12 Armor Integrity Analysis 40 Recoil Reduction 3 Kinecelleration 66 Salvage Targeting 4 Offensive Hacking 76 Defensive Hacking 25 Authchip Count 2 Item Schematics ----------------- VTOL Module | -9/Materials | Hacked Hacking Suite | -9/Materials | Scanalyzed Imp. Signal Interpreter | -9/Storage | Hacked Lgt. Nuclear Core | -9/Recycling | Hacked Imp. Hacking Suite | -6/Factory | Hacked Cld. Cesium-ion Thruster | -6/Factory | Scanalyzed Adv. Hacking Suite | -5/Factory | Downloaded Imp. Q-thruster | -4/Factory | Scanalyzed Assault Drone Bay | -4/Zhirov | Free Exp. Heat Sink | -4/Zhirov | Free Exp. Optical Array | -4/Zhirov | Free Imp. Arc Thrower | -4/Zhirov | Free Robot Schematics ------------------ None Fabricated ------------ Imp. Signal Interpreter | x2 | -6/Factory | Authchip Imp. Hacking Suite | x1 | -5/Factory | Authchip Cld. Cesium-ion Thruster | x1 | -5/Factory | Authchip Cld. Cesium-ion Thruster | x1 | -5/Factory | Authchip Imp. Q-thruster | x1 | -3/Research | Authchip Imp. Q-thruster | x1 | -3/Research | Authchip Repaired ---------- Lgt. Quantum Reactor | 10% | -4/Factory Mic. Fission Core | 5% | -2/Testing Studied --------- Shotgun | -9/Materials | Hacked Lgt. Treads | -9/Materials | Hacked Rocket Launcher | -9/Materials | Hacked Scythe | -6/Factory | Hacked VTOL Module | -6/Factory | Hacked Imp. Surge Thruster | -6/Factory | Hacked Nuclear Pulse Thruster | -6/Factory | Hacked Lgt. Deuterium Engine | -6/Factory | Hacked Plasma Cutter | -6/Factory | Hacked Hvy. Rocket Launcher | -6/Factory | Hacked Alien Tech Used ----------------- Dimensional Node Initializer Integrated Reactor Transdimensional Reconstructor Integrated Dissipator Core Regenerator Achievements -------------- Fine I'll Do It Myself Inventory(Loot) Junior Dev Physics Protects Please No, Not That Super-what Now? Thread The Needle Around The Corner UFD MVP We Are One Challenges ------------ None Game ------ Seed MultinovaCentriumImmobilizer Manual? 0 Play Time 04:09:13 Cumulative 313.1 hours Start 2026.02.28 @ 23:20:01 End 2026.03.01 @ 04:06:34 Sessions 1 Manual Loads 0 Difficulty Rogue Special Mode None Game No. 247 Rogue 247 Adventurer 0 Explorer 0 Win Type - Total 18 Types 9/0/7/2/0/0/0/0/0/0 Lore% 84 Gallery% 74 Achievement% 61 Wizard Run 0 Options --------- Layout 1 ASCII 0 Keyboard 0 Movement Numpad Keybinds 0 Fullscreen 1 Font 32/SmallcapsGlow Map View 77x35 Zoom Use 0% Tactical HUD 1 Map Filters NONE Filters NONE Steam 1 RUN: da54eae4-ef12-4176-a43b-bd48da6f0e6a